[Event "Championnat du monde jeunes U10"]
[Date "2024.11.23"]
[White "Santoro, Marco Antonio"]
[Black "Iliev, Stoyan"]
[WhiteElo "1765"]
[BlackElo "1671"]
[Round "8.3"]
[Result "0-1"]
[TimeControl "5400+30"]

1. e4 {[%clk 1:30:55]} 1... c5 {[%clk 1:31:00]} 2. Nf3 {[%clk 1:31:16]} 2... Nc6
{[%clk 1:31:27]} 3. d4 {[%clk 1:31:29]} 3... cxd4 {[%clk 1:31:53]} 4. Nxd4
{[%clk 1:31:50]} 4... e5 {[%clk 1:32:21]} 5. Nxc6 {[%clk 1:31:55]} 5... bxc6
{[%clk 1:32:45]} 6. Bc4 {[%clk 1:32:11]} 6... Nf6 {[%clk 1:32:27]} 7. Nc3 {[%clk
1:32:31]} 7... h6 {[%clk 1:32:10]} 8. O-O {[%clk 1:32:51]} 8... Bb7 {[%clk
1:31:15]} 9. Re1 {[%clk 1:32:40]} 9... Bc5 {[%clk 1:30:46]} 10. Be3 {[%clk
1:31:07]} 10... Be7 {[%clk 1:28:32]} 11. f3 {[%clk 1:28:56]} 11... O-O {[%clk
1:28:35]} 12. Qd2 {[%clk 1:29:17]} 12... d5 {[%clk 1:28:05]} 13. exd5 {[%clk
1:24:31]} 13... cxd5 {[%clk 1:27:37]} 14. Bb3 {[%clk 1:24:17]} 14... d4 {[%clk
1:27:48]} 15. Bxd4 {[%clk 1:24:21]} 15... exd4 {[%clk 1:28:02]} 16. Nd1 {[%clk
1:21:50]} 16... Bc5 {[%clk 1:26:19]} 17. Kh1 {[%clk 1:21:35]} 17... Qd6 {[%clk
1:25:34]} 18. Nf2 {[%clk 1:20:52]} 18... Bb6 {[%clk 1:24:28]} 19. Nh3 {[%clk
1:20:31]} 19... Bc7 {[%clk 1:24:27]} 20. f4 {[%clk 1:20:48]} 20... Qc5 {[%clk
1:23:43]} 21. Rac1 {[%clk 1:20:36]} 21... Qf5 {[%clk 1:22:19]} 22. Re7 {[%clk
1:20:24]} 22... Rac8 {[%clk 1:21:52]} 23. Kg1 {[%clk 1:20:21]} 23... d3 {[%clk
1:17:07]} 24. cxd3 {[%clk 1:20:15]} 24... Bb6+ {[%clk 1:17:30]} 25. Kf1 {[%clk
1:20:12]} 25... Rxc1+ {[%clk 1:17:43]} 26. Qxc1 {[%clk 1:20:34]} 26... Bxg2+
{[%clk 1:18:00]} 27. Kxg2 {[%clk 1:20:42]} 27... Qg4+ {[%clk 1:18:25]} 28. Kf1
{[%clk 1:20:55]} 28... Qf3+ {[%clk 1:17:57]} 29. Ke1 {[%clk 1:21:13]} 29... Ba5+
{[%clk 1:18:20]} 0-1

[Variant "Standard"]
[Site "Europe Echecs"]

[Event "Championnat du monde jeunes U10"]
[Date "2024.11.23"]
[White "Mikkelsen, Anders Askjaer"]
[Black "Radovic, Koca"]
[WhiteElo "1745"]
[BlackElo "1626"]
[Round "8.4"]
[Result "1-0"]
[TimeControl "5400+30"]

1. e4 {[%clk 1:30:50]} 1... e5 {[%clk 1:30:55]} 2. Nf3 {[%clk 1:31:11]} 2... Nc6
{[%clk 1:31:18]} 3. Bc4 {[%clk 1:31:27]} 3... Bc5 {[%clk 1:31:23]} 4. c3 {[%clk
1:31:31]} 4... Nf6 {[%clk 1:31:28]} 5. d4 {[%clk 1:31:49]} 5... exd4 {[%clk
1:31:28]} 6. e5 {[%clk 1:32:13]} 6... Ng4 {[%clk 1:25:20]} 7. Bxf7+ {[%clk
1:28:51]} 7... Kxf7 {[%clk 1:01:28]} 8. Ng5+ {[%clk 1:29:10]} 8... Ke8 {[%clk
1:01:41]} 9. Qxg4 {[%clk 1:29:05]} 9... Nxe5 {[%clk 0:58:45]} 10. Qe4 {[%clk
1:26:42]} 10... Qe7 {[%clk 0:58:18]} 11. O-O {[%clk 1:24:54]} 11... Nf7 {[%clk
0:57:36]} 12. Qg4 {[%clk 1:22:19]} 12... d6 {[%clk 0:56:50]} 13. Qg3 {[%clk
1:22:28]} 13... Nxg5 {[%clk 0:55:06]} 14. Bxg5 {[%clk 1:22:48]} 14... Qe5 {[%clk
0:55:15]} 15. Bf4 {[%clk 1:19:26]} 15... Qe2 {[%clk 0:54:08]} 16. Bd2 {[%clk
1:11:18]} 16... Kd8 {[%clk 0:44:53]} 17. Re1 {[%clk 1:11:05]} 17... Qg4 {[%clk
0:42:24]} 18. Bg5+ {[%clk 1:11:21]} 1-0

[Variant "Standard"]
[Site "Europe Echecs"]

[Event "Championnat du monde jeunes U10"]
[Date "2024.11.23"]
[White "Mitrovic, Vasilije"]
[Black "Sander, Tino"]
[WhiteElo "1590"]
[BlackElo "1736"]
[Round "8.5"]
[Result "1-0"]
[TimeControl "5400+30"]

1. e4 {[%clk 1:27:54]} 1... e5 {[%clk 1:30:28]} 2. Nf3 {[%clk 1:27:54]} 2... Nc6
{[%clk 1:30:50]} 3. Bc4 {[%clk 1:27:48]} 3... Bc5 {[%clk 1:31:13]} 4. c3 {[%clk
1:27:42]} 4... Nf6 {[%clk 1:31:37]} 5. d4 {[%clk 1:27:35]} 5... exd4 {[%clk
1:32:02]} 6. cxd4 {[%clk 1:27:27]} 6... Bb4+ {[%clk 1:32:26]} 7. Bd2 {[%clk
1:25:12]} 7... Nxe4 {[%clk 1:32:37]} 8. Bxb4 {[%clk 1:24:05]} 8... Nxb4 {[%clk
1:33:04]} 9. Bxf7+ {[%clk 1:24:15]} 9... Kxf7 {[%clk 1:33:23]} 10. Qb3+ {[%clk
1:24:37]} 10... d5 {[%clk 1:33:36]} 11. Ne5+ {[%clk 1:18:17]} 11... Ke6 {[%clk
1:33:33]} 12. Qxb4 {[%clk 1:17:39]} 12... Qf8 {[%clk 1:33:56]} 13. Qxf8 {[%clk
1:11:08]} 13... Rxf8 {[%clk 1:33:49]} 14. O-O {[%clk 1:08:01]} 14... c5 {[%clk
1:29:37]} 15. Nf3 {[%clk 1:01:36]} 15... b6 {[%clk 1:24:19]} 16. dxc5 {[%clk
0:56:26]} 16... bxc5 {[%clk 1:22:52]} 17. Nbd2 {[%clk 0:49:06]} 17... Nxd2
{[%clk 1:20:58]} 18. Nxd2 {[%clk 0:49:04]} 18... Bb7 {[%clk 1:08:16]} 19. Rfe1+
{[%clk 0:45:58]} 19... Kd6 {[%clk 1:07:59]} 20. Rac1 {[%clk 0:29:21]} 20... Rae8
{[%clk 1:03:55]} 21. f3 {[%clk 0:22:45]} 21... Rxe1+ {[%clk 0:51:26]} 22. Rxe1
{[%clk 0:22:50]} 22... Bc6 {[%clk 0:51:54]} 23. Kf2 {[%clk 0:19:04]} 23... Rf4
{[%clk 0:51:15]} 24. a3 {[%clk 0:13:50]} 24... Rd4 {[%clk 0:50:44]} 25. Nf1
{[%clk 0:08:23]} 25... Bb5 {[%clk 0:49:04]} 26. g3 {[%clk 0:06:31]} 26... Bxf1
{[%clk 0:47:27]} 27. Kxf1 {[%clk 0:06:13]} 27... Rd2 {[%clk 0:45:51]} 28. Re2
{[%clk 0:06:24]} 28... Rxe2 {[%clk 0:45:26]} 29. Kxe2 {[%clk 0:06:38]} 29... a5
{[%clk 0:44:25]} 30. b3 {[%clk 0:05:28]} 30... Kc6 {[%clk 0:42:59]} 31. a4
{[%clk 0:05:03]} 31... c4 {[%clk 0:42:55]} 32. bxc4 {[%clk 0:04:38]} 32... dxc4
{[%clk 0:42:30]} 33. Kd2 {[%clk 0:04:40]} 33... Kc5 {[%clk 0:40:54]} 34. Kc3
{[%clk 0:04:46]} 34... Kd5 {[%clk 0:39:48]} 35. f4 {[%clk 0:03:23]} 35... h6
{[%clk 0:39:28]} 36. g4 {[%clk 0:02:40]} 36... Kc5 {[%clk 0:35:44]} 37. g5
{[%clk 0:02:05]} 37... h5 {[%clk 0:28:16]} 38. f5 {[%clk 0:02:16]} 38... h4
{[%clk 0:27:36]} 39. f6 {[%clk 0:02:20]} 39... gxf6 {[%clk 0:27:51]} 40. g6
{[%clk 0:02:12]} 40... Kd5 {[%clk 0:26:04]} 41. g7 {[%clk 0:02:17]} 41... f5
{[%clk 0:26:14]} 42. g8=Q+ {[%clk 0:02:27]} 42... Ke4 {[%clk 0:26:23]} 43. Qxc4+
{[%clk 0:02:43]} 43... Kf3 {[%clk 0:26:39]} 44. Qxh4 {[%clk 0:03:00]} 44... f4
{[%clk 0:26:59]} 45. Qe1 {[%clk 0:02:26]} 45... Kg2 {[%clk 0:27:17]} 46. Qe2+
{[%clk 0:01:57]} 46... Kg1 {[%clk 0:27:28]} 47. Qg4+ {[%clk 0:02:05]} 47... Kxh2
{[%clk 0:27:52]} 48. Qxf4+ {[%clk 0:02:20]} 48... Kh3 {[%clk 0:27:47]} 49. Qg5
{[%clk 0:02:23]} 49... Kh2 {[%clk 0:28:08]} 50. Kd2 {[%clk 0:02:46]} 50... Kh1
{[%clk 0:28:31]} 51. Ke2 {[%clk 0:03:02]} 1-0

[Variant "Standard"]
[Site "Europe Echecs"]

[Event "Championnat du monde jeunes U10"]
[Date "2024.11.23"]
[White "Orsi, Andrea"]
[Black "Czech, Emil"]
[WhiteElo "1728"]
[BlackElo "1608"]
[Round "8.6"]
[Result "0-1"]
[TimeControl "5400+30"]

1. e4 {[%clk 1:30:55]} 1... c5 {[%clk 1:30:51]} 2. Nf3 {[%clk 1:31:17]} 2... e6
{[%clk 1:31:13]} 3. d4 {[%clk 1:31:45]} 3... cxd4 {[%clk 1:31:38]} 4. Nxd4
{[%clk 1:31:55]} 4... Nf6 {[%clk 1:31:55]} 5. Nc3 {[%clk 1:32:17]} 5... Nc6
{[%clk 1:32:15]} 6. Be2 {[%clk 1:32:10]} 6... Bb4 {[%clk 1:32:04]} 7. f3 {[%clk
1:28:42]} 7... d5 {[%clk 1:29:27]} 8. Bb5 {[%clk 0:51:21]} 8... Qb6 {[%clk
1:18:41]} 9. Bxc6+ {[%clk 0:44:41]} 9... bxc6 {[%clk 1:18:03]} 10. e5 {[%clk
0:38:41]} 10... Nd7 {[%clk 1:17:17]} 11. f4 {[%clk 0:38:08]} 11... Nc5 {[%clk
0:58:05]} 12. Bd2 {[%clk 0:11:02]} 12... Ne4 {[%clk 0:47:59]} 13. Nxe4 {[%clk
0:06:57]} 13... Qxd4 {[%clk 0:48:10]} 14. Ng3 {[%clk 0:06:58]} 14... Qxf4 {[%clk
0:38:48]} 15. c3 {[%clk 0:06:16]} 15... Qxe5+ {[%clk 0:39:02]} 16. Ne2 {[%clk
0:06:16]} 16... Bc5 {[%clk 0:38:40]} 17. b4 {[%clk 0:05:55]} 17... Bb6 {[%clk
0:37:18]} 18. Qc1 {[%clk 0:04:45]} 18... Ba6 {[%clk 0:36:27]} 19. Qd1 {[%clk
0:04:43]} 19... O-O {[%clk 0:35:00]} 20. a4 {[%clk 0:02:17]} 20... Qe4 {[%clk
0:32:08]} 0-1

[Variant "Standard"]
[Site "Europe Echecs"]

[Event "Championnat du monde jeunes U10"]
[Date "2024.11.23"]
[White "Ostapenko, Volodymyr"]
[Black "Hung, I-Hsuan"]
[WhiteElo "1720"]
[BlackElo "1608"]
[Round "8.7"]
[Result "1/2-1/2"]
[TimeControl "5400+30"]

1. e4 {[%clk 1:30:55]} 1... e5 {[%clk 1:30:55]} 2. Nf3 {[%clk 1:31:22]} 2... Nc6
{[%clk 1:31:17]} 3. d4 {[%clk 1:31:45]} 3... exd4 {[%clk 1:31:32]} 4. Bc4 {[%clk
1:31:52]} 4... Nf6 {[%clk 1:29:56]} 5. O-O {[%clk 1:31:29]} 5... h6 {[%clk
1:28:33]} 6. e5 {[%clk 1:29:33]} 6... d5 {[%clk 1:28:27]} 7. Bb5 {[%clk
1:28:22]} 7... Ne4 {[%clk 1:26:50]} 8. Nxd4 {[%clk 1:25:58]} 8... Bd7 {[%clk
1:25:00]} 9. Nxc6 {[%clk 1:24:42]} 9... Bxc6 {[%clk 1:22:45]} 10. Bxc6+ {[%clk
1:24:52]} 10... bxc6 {[%clk 1:22:42]} 11. Nd2 {[%clk 1:22:04]} 11... Nc5 {[%clk
1:19:30]} 12. Nf3 {[%clk 1:21:12]} 12... Be7 {[%clk 1:17:40]} 13. Re1 {[%clk
1:17:23]} 13... O-O {[%clk 1:13:02]} 14. c3 {[%clk 1:13:42]} 14... Ne6 {[%clk
1:07:10]} 15. Nd4 {[%clk 1:13:46]} 15... Nxd4 {[%clk 1:04:40]} 16. cxd4 {[%clk
1:13:43]} 16... c5 {[%clk 1:01:53]} 17. Be3 {[%clk 1:13:35]} 17... cxd4 {[%clk
0:59:54]} 18. Bxd4 {[%clk 1:13:49]} 18... c5 {[%clk 0:56:52]} 19. Be3 {[%clk
1:13:17]} 19... d4 {[%clk 0:54:27]} 20. Bf4 Qd5 {[%clk 0:52:43]} 21. Qg4 {[%clk
1:06:30]} 21... Kh8 {[%clk 0:50:08]} 22. Rad1 {[%clk 1:03:19]} 22... Rab8 {[%clk
0:47:36]} 1/2-1/2

[Variant "Standard"]
[Site "Europe Echecs"]

[Event "Championnat du monde jeunes U10"]
[Date "2024.11.23"]
[White "Sahin, Yusuf Kerem"]
[Black "Roth, Elai"]
[WhiteElo "1720"]
[BlackElo "1577"]
[Round "8.8"]
[Result "1-0"]
[TimeControl "5400+30"]

1. d4 d5 2. c4 c6 3. Nf3 Nf6 4. e3 Bf5 5. Nc3 e6 6. Be2 Bd6 7. O-O O-O 8. b3
Nbd7 9. Bb2 Bb8 10. h3 Ne4 11. Re1 Ndf6 12. Bd3 Qc7 13. Ne5 Nxc3 14. Bxc3 Bxd3
15. Qxd3 Ne4 16. Bb2 f6 17. Nf3 Ng5 18. Qe2 dxc4 19. bxc4 Nxf3+ 20. Qxf3 e5 21.
d5 Re8 22. e4 a6 23. Rac1 Ba7 24. a4 Bc5 25. Ba3 Bxa3 26. Qxa3 c5 27. Rb1 Rad8
28. a5 Re7 29. Rb6 Rd6 30. Reb1 Rxb6 31. Rxb6 Rd7 32. Qb2 h6 33. Kf1 Kh7 34. Ke2
Kg8 35. f3 Kh7 36. Kf2 Kg8 37. Qb1 Kh8 38. h4 Kg8 39. g4 Kf7 40. d6 Qc8 41. Qd1
g5 42. Qd5+ Kg7 43. hxg5 hxg5 44. Qe6 Kg6 45. Rb1 Qd8 46. Rh1 Rg7 47. Rh5 Qd7
48. Qf5+ Qxf5 49. exf5+ Kf7 50. Rh8 1-0

[Variant "Standard"]
[Site "Europe Echecs"]

[Event "Championnat du monde jeunes U10"]
[Date "2024.11.23"]
[White "Kaloh, Edvard"]
[Black "Yevsieiev, Yaroslav"]
[WhiteElo "1506"]
[BlackElo "1706"]
[Round "8.9"]
[Result "0-1"]
[TimeControl "5400+30"]

1. e4 {[%clk 1:29:56]} 1... e5 {[%clk 1:30:58]} 2. Nf3 {[%clk 1:30:18]} 2... Nc6
{[%clk 1:31:25]} 3. Bc4 {[%clk 1:30:41]} 3... Nf6 {[%clk 1:31:53]} 4. d3 {[%clk
1:31:04]} 4... Bc5 {[%clk 1:32:21]} 5. c3 {[%clk 1:31:26]} 5... d6 {[%clk
1:32:49]} 6. O-O {[%clk 1:31:44]} 6... h6 {[%clk 1:33:14]} 7. d4 {[%clk
1:32:02]} 7... exd4 {[%clk 1:33:15]} 8. cxd4 {[%clk 1:32:24]} 8... Bb6 {[%clk
1:33:44]} 9. Bb5 {[%clk 1:30:50]} 9... O-O {[%clk 1:30:18]} 10. Nc3 {[%clk
1:30:12]} 10... Bg4 {[%clk 1:30:27]} 11. Bxc6 {[%clk 1:26:06]} 11... bxc6 {[%clk
1:30:50]} 12. d5 {[%clk 1:26:05]} 12... cxd5 {[%clk 1:31:05]} 13. exd5 {[%clk
1:26:07]} 13... Re8 {[%clk 1:31:27]} 14. Na4 {[%clk 1:24:15]} 14... Qd7 {[%clk
1:31:44]} 15. Nxb6 {[%clk 1:20:36]} 15... axb6 {[%clk 1:31:24]} 16. h3 {[%clk
1:19:21]} 16... Bh5 {[%clk 1:31:14]} 17. Qd3 {[%clk 1:19:30]} 17... Ra5 {[%clk
1:30:57]} 18. b4 {[%clk 1:13:51]} 18... Rxd5 {[%clk 1:30:59]} 19. Qc3 {[%clk
1:11:24]} 19... Qf5 {[%clk 1:23:59]} 20. Nd4 {[%clk 0:57:54]} 20... Qe5 {[%clk
1:22:12]} 21. Be3 {[%clk 0:55:47]} 21... Ne4 {[%clk 1:22:16]} 22. Qxc7 {[%clk
0:56:01]} 22... Rxd4 {[%clk 1:22:35]} 23. Bxd4 {[%clk 0:56:00]} 23... Qxd4
{[%clk 1:23:03]} 24. Qc6 {[%clk 0:55:30]} 24... Re6 {[%clk 1:23:04]} 25. Qc8+
{[%clk 0:49:43]} 25... Kh7 {[%clk 1:23:21]} 26. Qc2 {[%clk 0:49:19]} 26... Bg6
{[%clk 1:23:38]} 27. Qd1 {[%clk 0:29:30]} 27... Qxb4 {[%clk 1:22:22]} 28. a3
{[%clk 0:28:40]} 28... Qc5 {[%clk 1:22:26]} 29. Qa4 {[%clk 0:27:55]} 29... Rf6
{[%clk 1:22:04]} 30. Rac1 {[%clk 0:26:56]} 30... Nc3 {[%clk 1:21:30]} 31. Qb3
{[%clk 0:26:28]} 31... Ne2+ {[%clk 1:21:52]} 32. Kh1 {[%clk 0:23:19]} 32... Nxc1
{[%clk 1:22:14]} 33. Qd1 {[%clk 0:23:08]} 33... Nd3 {[%clk 1:22:33]} 0-1

[Variant "Standard"]
[Site "Europe Echecs"]

[Event "Championnat du monde jeunes U10"]
[Date "2024.11.23"]
[White "Tenuun, Tseesuren"]
[Black "Tamiolakis, Grigorios"]
[WhiteElo "1702"]
[BlackElo "1591"]
[Round "8.10"]
[Result "1-0"]
[TimeControl "5400+30"]

1. d4 {[%clk 1:30:49]} 1... d5 {[%clk 1:30:54]} 2. Bf4 {[%clk 1:31:09]} 2... Nf6
{[%clk 1:31:16]} 3. e3 {[%clk 1:31:07]} 3... c5 {[%clk 1:30:28]} 4. c3 {[%clk
1:29:50]} 4... Qb6 {[%clk 1:24:13]} 5. Qb3 c4 {[%clk 1:24:03]} 6. Qc2 {[%clk
1:24:53]} 6... g6 {[%clk 1:20:25]} 7. b3 {[%clk 1:20:24]} 7... Bf5 {[%clk
1:17:10]} 8. Qd1 {[%clk 1:19:26]} 8... cxb3 {[%clk 1:13:18]} 9. axb3 {[%clk
1:18:33]} 9... Bg7 {[%clk 1:08:19]} 10. Ra3 {[%clk 1:15:33]} 10... O-O {[%clk
1:02:56]} 11. Bd3 {[%clk 1:15:23]} 11... e6 {[%clk 1:00:53]} 12. Bxf5 {[%clk
1:12:38]} 12... exf5 {[%clk 1:01:05]} 13. Nf3 {[%clk 1:12:36]} 13... Nbd7 {[%clk
0:57:41]} 14. O-O {[%clk 1:12:44]} 14... Rac8 {[%clk 0:55:55]} 15. Qd3 {[%clk
1:11:49]} 15... a6 {[%clk 0:40:22]} 16. Nbd2 {[%clk 1:11:11]} 16... Ne4 {[%clk
0:30:51]} 17. Rc1 {[%clk 1:03:43]} 17... Ndf6 {[%clk 0:17:54]} 18. c4 {[%clk
1:03:02]} 18... Nxd2 {[%clk 0:14:09]} 19. Nxd2 {[%clk 1:00:31]} 19... Ne4 {[%clk
0:13:30]} 20. c5 {[%clk 0:53:06]} 20... Qb4 {[%clk 0:12:56]} 21. Ra2 {[%clk
0:50:11]} 21... Nxd2 {[%clk 0:12:42]} 22. Qxd2 {[%clk 0:50:32]} 22... Qxb3
{[%clk 0:12:24]} 23. Rb2 {[%clk 0:50:52]} 23... Qa4 {[%clk 0:12:13]} 24. Rxb7
{[%clk 0:50:49]} 24... Rc6 {[%clk 0:09:11]} 25. Qb2 {[%clk 0:47:23]} 25... Rxc5
{[%clk 0:04:15]} 26. Ra1 {[%clk 0:46:09]} 26... Qc2 {[%clk 0:03:58]} 27. Bd6
{[%clk 0:44:22]} 27... Qxb2 {[%clk 0:00:46]} 28. Rxb2 {[%clk 0:44:44]} 28...
Rcc8 {[%clk 0:00:47]} 29. Bxf8 {[%clk 0:44:58]} 29... Bxf8 {[%clk 0:01:08]} 30.
g3 {[%clk 0:45:21]} 30... Kg7 {[%clk 0:00:40]} 31. Rxa6 {[%clk 0:45:41]} 31...
Rd8 {[%clk 0:00:45]} 32. Rb7 {[%clk 0:46:06]} 32... Kg8 {[%clk 0:00:34]} 33.
Raa7 {[%clk 0:46:21]} 33... Rc8 {[%clk 0:00:37]} 34. Rxf7 {[%clk 0:46:39]} 34...
Rc1+ {[%clk 0:00:57]} 35. Kg2 {[%clk 0:47:03]} 35... Rc2 {[%clk 0:01:26]} 36.
Rxh7 {[%clk 0:47:22]} 36... Rb2 {[%clk 0:01:31]} 37. Rhd7 {[%clk 0:47:41]} 37...
Rb5 {[%clk 0:01:53]} 38. Ra8 {[%clk 0:48:06]} 38... Rb6 {[%clk 0:02:08]} 39.
Rdd8 {[%clk 0:48:24]} 39... Rf6 {[%clk 0:02:29]} 40. Rxd5 {[%clk 0:48:51]} 40...
Kg7 {[%clk 0:02:21]} 41. Rd7+ {[%clk 0:49:15]} 41... Kg8 {[%clk 0:02:10]} 42. d5
{[%clk 0:49:40]} 1-0

[Variant "Standard"]
[Site "Europe Echecs"]

[Event "Championnat du monde jeunes U10"]
[Date "2024.11.23"]
[White "Radiukevich, Viacheslau"]
[Black "Aghoyan, Gevorg"]
[WhiteElo "1484"]
[BlackElo "1682"]
[Round "8.11"]
[Result "1-0"]
[TimeControl "5400+30"]

1. e4 {[%clk 1:30:56]} 1... c6 {[%clk 1:30:55]} 2. d4 {[%clk 1:31:09]} 2... d5
{[%clk 1:31:18]} 3. exd5 {[%clk 1:31:34]} 3... cxd5 {[%clk 1:31:44]} 4. Bd3
{[%clk 1:31:49]} 4... Nc6 {[%clk 1:32:01]} 5. c3 {[%clk 1:32:13]} 5... Nf6
{[%clk 1:32:21]} 6. Bf4 {[%clk 1:32:37]} 6... Bg4 {[%clk 1:32:33]} 7. Qb3 {[%clk
1:33:01]} 7... Qd7 {[%clk 1:32:36]} 8. Nd2 {[%clk 1:33:22]} 8... e6 {[%clk
1:32:42]} 9. Ngf3 {[%clk 1:33:46]} 9... Bxf3 {[%clk 1:33:03]} 10. Nxf3 {[%clk
1:34:07]} 10... Bd6 {[%clk 1:33:09]} 11. Bxd6 {[%clk 1:34:30]} 11... Qxd6 {[%clk
1:33:32]} 12. O-O {[%clk 1:34:48]} 12... O-O {[%clk 1:33:23]} 13. Rae1 {[%clk
1:35:08]} 13... Rab8 {[%clk 1:28:54]} 14. Ne5 {[%clk 1:35:10]} 14... a6 {[%clk
1:17:38]} 15. Re3 {[%clk 1:33:08]} 15... b5 {[%clk 1:11:03]} 16. a3 {[%clk
1:31:56]} 16... Rfc8 {[%clk 1:04:49]} 17. f4 {[%clk 1:30:49]} 17... Na5 {[%clk
0:59:34]} 18. Qc2 {[%clk 1:26:43]} 18... Nc4 {[%clk 0:56:07]} 19. Rh3 {[%clk
1:22:43]} 19... h6 {[%clk 0:54:00]} 20. Rg3 {[%clk 1:22:15]} 20... a5 {[%clk
0:49:55]} 21. Bxc4 {[%clk 1:21:50]} 21... bxc4 {[%clk 0:47:27]} 22. Nxf7 {[%clk
1:21:53]} 22... Kxf7 {[%clk 0:44:38]} 23. Qg6+ {[%clk 1:22:14]} 23... Ke7 {[%clk
0:44:55]} 24. Qxg7+ {[%clk 1:22:06]} 24... Kd8 {[%clk 0:45:04]} 25. Qxf6+ {[%clk
1:21:50]} 25... Kc7 {[%clk 0:45:01]} 26. Rb1 {[%clk 1:20:55]} 26... Rf8 {[%clk
0:44:17]} 27. Qxh6 {[%clk 1:18:54]} 27... Rxf4 {[%clk 0:44:33]} 28. Re3 {[%clk
1:18:01]} 28... Re8 {[%clk 0:43:40]} 29. Rbe1 {[%clk 1:17:17]} 29... Kd7 {[%clk
0:43:33]} 30. h3 {[%clk 1:15:24]} 30... Rf7 {[%clk 0:42:01]} 31. Qg6 {[%clk
1:15:25]} 31... Rfe7 {[%clk 0:41:37]} 32. Qg3 {[%clk 1:12:03]} 32... Qb6 {[%clk
0:41:38]} 33. Qf2 {[%clk 1:10:36]} 33... Qd8 {[%clk 0:41:12]} 34. Qc2 {[%clk
1:10:41]} 34... Qb6 {[%clk 0:40:19]} 35. Kh1 {[%clk 1:10:24]} 35... Rg8 {[%clk
0:38:29]} 36. Qf2 {[%clk 1:08:16]} 36... Qd6 {[%clk 0:37:52]} 37. Rf3 {[%clk
1:07:21]} 37... Rgg7 {[%clk 0:37:09]} 38. Rf6 {[%clk 1:04:36]} 38... Rh7 {[%clk
0:35:43]} 39. Qf4 {[%clk 1:02:45]} 39... Qb6 {[%clk 0:35:31]} 40. Qg4 {[%clk
1:00:18]} 40... Qd6 {[%clk 0:33:14]} 41. Qg6 {[%clk 0:58:26]} 41... Rhg7 {[%clk
0:32:21]} 42. Rexe6 {[%clk 0:57:19]} 42... Qxe6 {[%clk 0:30:58]} 43. Rxe6 {[%clk
0:57:39]} 43... Rxg6 {[%clk 0:31:24]} 44. Rxg6 {[%clk 0:57:58]} 44... Re1+
{[%clk 0:31:47]} 45. Kh2 {[%clk 0:58:24]} 45... Re2 {[%clk 0:32:10]} 46. Rb6
{[%clk 0:58:30]} 46... Kc7 {[%clk 0:32:26]} 47. Rb5 {[%clk 0:58:50]} 47... Kc6
{[%clk 0:32:41]} 48. a4 {[%clk 0:59:16]} 48... Kd6 {[%clk 0:32:48]} 49. h4
{[%clk 0:59:13]} 49... Ke6 {[%clk 0:33:15]} 50. Kh3 {[%clk 0:59:31]} 50... Kd6
{[%clk 0:33:24]} 51. h5 {[%clk 0:59:48]} 51... Re4 {[%clk 0:33:39]} 52. g4
{[%clk 1:00:07]} 52... Ke6 {[%clk 0:33:56]} 53. Rb6+ {[%clk 1:00:33]} 53... Kf7
{[%clk 0:34:21]} 54. Kh4 {[%clk 1:00:48]} 54... Kg7 {[%clk 0:34:41]} 55. Kg5 Kf7
{[%clk 0:35:07]} 56. h6 {[%clk 1:01:24]} 56... Kg8 {[%clk 0:35:25]} 57. Rb8+
{[%clk 1:01:28]} 57... Kh7 {[%clk 0:35:48]} 58. Rb7+ {[%clk 1:01:51]} 58... Kh8
{[%clk 0:35:57]} 59. h7 {[%clk 1:01:35]} 59... Rxg4+ {[%clk 0:36:07]} 60. Kf5
{[%clk 1:01:58]} 60... Rg5+ {[%clk 0:36:08]} 61. Ke6 {[%clk 1:02:10]} 61... Rg6+
{[%clk 0:00:00]} 62. Kd7 {[%clk 1:02:27]} 62... Rd6+ {[%clk 0:37:54]} 63. Kc7
{[%clk 1:02:43]} 63... Rc6+ {[%clk 0:38:19]} 64. Kb8 {[%clk 1:03:03]} 64... Rc8+
{[%clk 0:38:43]} 65. Ka7 {[%clk 1:03:27]} 65... Ra8+ {[%clk 0:37:57]} 66. Kb6
{[%clk 1:03:52]} 66... Ra6+ {[%clk 0:38:07]} 67. Kb5 {[%clk 1:04:17]} 67... Ra8
{[%clk 0:38:02]} 68. Rb6 {[%clk 1:03:37]} 68... Kxh7 {[%clk 0:38:20]} 69. Kc5
{[%clk 1:04:04]} 69... Rd8 {[%clk 0:38:45]} 70. Rd6 {[%clk 1:04:24]} 70... Rc8+
{[%clk 0:39:09]} 71. Kxd5 {[%clk 1:04:47]} 71... Rb8 {[%clk 0:39:35]} 72. Kxc4
{[%clk 1:05:02]} 72... Rxb2 {[%clk 0:39:59]} 73. Ra6 {[%clk 1:05:26]} 1-0

[Variant "Standard"]
[Site "Europe Echecs"]

[Event "Championnat du monde jeunes U10"]
[Date "2024.11.23"]
[White "Della Penna, Leonardo"]
[Black "Shrubok, Herman"]
[WhiteElo "1675"]
[BlackElo "1477"]
[Round "8.12"]
[Result "0-1"]
[TimeControl "5400+30"]

1. e4 {[%clk 1:30:54]} 1... c5 {[%clk 1:30:02]} 2. Nf3 {[%clk 1:31:13]} 2... e6
{[%clk 1:29:26]} 3. d4 {[%clk 1:31:39]} 3... cxd4 {[%clk 1:28:43]} 4. Nxd4
{[%clk 1:32:00]} 4... Nf6 {[%clk 1:27:52]} 5. Nc3 {[%clk 1:32:03]} 5... Nc6
{[%clk 1:26:40]} 6. Ndb5 {[%clk 1:32:16]} 6... Bc5 {[%clk 1:24:45]} 7. Bf4
{[%clk 1:30:55]} 7... O-O {[%clk 1:22:48]} 8. Bc7 {[%clk 1:30:28]} 8... Qe7
{[%clk 1:20:38]} 9. Bd6 {[%clk 1:30:09]} 9... Bxd6 {[%clk 1:18:52]} 10. Qxd6
{[%clk 1:29:50]} 10... Qd8 {[%clk 1:14:46]} 11. Nc7 {[%clk 1:27:05]} 11... Rb8
{[%clk 1:04:22]} 12. Be2 {[%clk 1:22:10]} 12... b5 {[%clk 1:00:53]} 13. e5
{[%clk 1:17:15]} 13... Ne8 {[%clk 0:58:56]} 14. Nxe8 {[%clk 1:17:01]} 14... Rxe8
{[%clk 0:58:52]} 15. O-O {[%clk 1:10:51]} 15... b4 {[%clk 0:58:13]} 16. Ne4
{[%clk 1:06:50]} 16... f6 {[%clk 0:55:49]} 17. exf6 {[%clk 0:56:32]} 17... gxf6
{[%clk 0:56:02]} 18. Qg3+ {[%clk 0:56:03]} 18... Kh8 {[%clk 0:54:05]} 19. Qh4
{[%clk 0:53:12]} 19... f5 {[%clk 0:50:47]} 20. Ng5 {[%clk 0:52:41]} 20... Qe7
{[%clk 0:48:05]} 21. Bh5 {[%clk 0:50:23]} 21... Rg8 {[%clk 0:43:19]} 22. Nf7+
{[%clk 0:45:39]} 22... Kg7 {[%clk 0:43:30]} 23. Qf4 {[%clk 0:42:19]} 23... Qf6
{[%clk 0:39:52]} 24. Qg3+ {[%clk 0:38:07]} 24... Kf8 {[%clk 0:39:27]} 25. Qd6+
{[%clk 0:38:17]} 25... Qe7 {[%clk 0:38:58]} 26. Qd2 {[%clk 0:33:57]} 26... Rb5
{[%clk 0:33:56]} 27. Nd6 {[%clk 0:30:37]} 27... Qg7 {[%clk 0:31:24]} 28. Bf3
{[%clk 0:28:57]} 28... Nd4 {[%clk 0:30:04]} 29. Qd1 {[%clk 0:27:56]} 29... Rc5
{[%clk 0:28:35]} 30. Rc1 {[%clk 0:23:01]} 30... Ba6 {[%clk 0:28:50]} 31. Re1
{[%clk 0:22:27]} 31... Be2 {[%clk 0:28:58]} 0-1

[Variant "Standard"]
[Site "Europe Echecs"]